fUST/lending_fUST_20250227
["ID","MTS","AMOUNT","RATE_DAILY","PERIOD"]
[354722408,1740645053996,-500.0,0.00049863,120]
[354722409,1740645054006,-500.0,0.00049863,120]
[354722410,1740645054015,-681.92,0.00049863,120]
[354722411,1740645054025,-500.0,0.00049863,120]
[354722412,1740645054034,-663.83,0.00049863,120]
[354722413,1740645054043,-500.0,0.00049863,120]
[354722414,1740645054052,-500.0,0.00049863,120]
[354722415,1740645054061,-449.27968869,0.00049863,120]
[354722416,1740645054070,-556.53,0.00049863,120]
[354722417,1740645054081,-663.48,0.00049863,120]
[354722418,1740645054090,-569.72,0.00049863,120]
[354722419,1740645054099,-1031.79,0.00049863,120]
[354722420,1740645054108,-500.0,0.00049863,120]
[354722421,1740645054117,-549.69,0.00049863,120]
[354722422,1740645054126,-540.2,0.00049863,120]
[354722423,1740645054136,-500.0,0.00049863,120]
[354722424,1740645054145,-500.0,0.00049863,120]
[354722425,1740645054154,-1080.0,0.00049863,120]
[354722426,1740645054163,-500.0,0.00049863,120]
[354722427,1740645054172,-701.25,0.00049863,120]
[354722428,1740645054181,-193.66025,0.00049863,120]
[354722429,1740645054190,-500.0,0.00049863,120]
[354722430,1740645054200,-706.92,0.00049863,120]
[354722431,1740645054209,-500.0,0.00049863,120]
[354722432,1740645054218,-500.0,0.00049863,120]
[354722433,1740645054227,-500.0,0.00049863,120]
[354722434,1740645054236,-1475.23,0.00049863,120]
[354722435,1740645054246,-500.0,0.00049863,120]
[354722436,1740645054256,-2492.79,0.00049863,120]
[354722437,1740645054267,-3605.51,0.00049863,120]
[354722438,1740645054277,-706.59,0.00049863,120]
[354722439,1740645054286,-5880.65,0.00049863,120]
[354722440,1740645054296,-687.22,0.00049863,120]
[354722441,1740645054306,-829.07,0.00049863,120]
[354722442,1740645054316,-2715.66,0.00049863,120]
[354722443,1740645054325,-1233.62,0.00049863,120]
[354722444,1740645054336,-890.87,0.00049863,120]
[354722445,1740645054346,-44425.16,0.00049863,7]
[354722446,1740645054355,-525.49,0.00049863,120]
[354722447,1740645054368,-1160.72,0.00049863,120]
[354722448,1740645054378,-1542.34,0.00049863,120]
[354722449,1740645054387,-10995.86,0.00049863,120]
[354722450,1740645054398,-948.49,0.00049863,120]
[354722451,1740645054408,-3757.81,0.00049863,120]
[354722452,1740645054418,-917.96,0.00049863,120]
[354722453,1740645054427,-500.0,0.00049863,120]
[354722454,1740645054438,-564.18,0.00049863,120]
[354722455,1740645054448,-501.08,0.00049863,120]
[354722456,1740645054458,-1429.82,0.00049863,120]
[354722457,1740645054467,-500.0,0.00049863,120]
[354722458,1740645054477,-621.86,0.00049863,120]
[354722459,1740645054486,-612.2114665,0.00049863,120]
[354722460,1740645054496,-978.18,0.00049863,120]
[354722461,1740645054505,-500.0,0.00049863,120]
[354722462,1740645054515,-2204.67,0.00049863,120]
[354722463,1740645054524,-1661.65,0.00049863,120]
[354722464,1740645054535,-500.0,0.00049863,120]
[354722465,1740645054545,-1062.09,0.00049863,120]
[354722466,1740645054555,-151.0,0.00049863,30]
[354722467,1740645054564,-2457.94,0.00049863,120]
[354722468,1740645054573,-668.19,0.00049863,120]
[354722469,1740645054582,-1292.87,0.00049863,120]
[354722470,1740645054591,-151.0,0.00049863,120]
[354722471,1740645054600,-778.13,0.00049863,120]
[354722472,1740645054610,-1176.62,0.00049863,120]
[354722473,1740645054621,-965.62,0.00049863,120]
[354722474,1740645054631,-1216.86,0.00049863,120]
[354722475,1740645054640,-536.82,0.00049863,120]
[354722476,1740645054650,-500.0,0.00049863,120]
[354722477,1740645054660,-613.31,0.00049863,120]
[354722478,1740645054670,-1414.02,0.00049863,120]
[354722479,1740645054680,-799.1,0.00049863,120]
[354722480,1740645054689,-10598.07,0.00049863,6]
[354722481,1740645054699,-821.64,0.00049863,120]
[354722482,1740645054708,-3104.1,0.00049863,120]
[354722483,1740645054717,-1640.98,0.00049863,120]
[354722484,1740645054726,-500.0,0.00049863,120]
[354722485,1740645054735,-1310.59,0.00049863,120]
[354722486,1740645054744,-641.14,0.00049863,120]
[354722487,1740645054753,-17858.17,0.00049863,120]
[354722488,1740645054763,-708.95,0.00049863,120]
[354722489,1740645054772,-823.99,0.00049863,120]
[354722490,1740645054781,-655.68,0.00049863,120]
[354722491,1740645054790,-2086.09,0.00049863,120]
[354722492,1740645054799,-1565.67,0.00049863,120]
[354722493,1740645054808,-3202.1901063,0.0004988,2]
[354722494,1740645054818,-500.0,0.00049893,2]
[354722495,1740645054827,-500.0,0.00049993,2]
[354722496,1740645054836,-1000.0,0.00049999,120]
[354722497,1740645054846,-1000.0,0.0005,7]
[354722498,1740645054855,-30000.0,0.0005,120]
[354722499,1740645054864,-10006.93028146,0.0005,2]
[354722500,1740645054874,-587326.07108785,0.0005,2]
[354722501,1740645054993,-14016.01749748,0.0005,2]
[354722502,1740645055661,-500.0,0.00046575,120]
[354722503,1740645055671,-225.9149841,0.00046575,120]
[354722504,1740645055683,-274.0850159,0.00046575,120]
[354722505,1740645055693,-582.03865145,0.00046575,120]
[354722506,1740645055703,-7144.45,0.00046849,120]
[354722507,1740645055714,-502.20605589,0.00046849,120]
[354722508,1740645055723,-196.78303864,0.00047122,120]
[354722509,1740645055733,-522.74890524,0.00047122,120]
[354722510,1740645055742,-516.97645225,0.00047122,31]
[354722511,1740645055752,-7144.45,0.00047123,120]
[354722512,1740645055763,-7144.45,0.00047397,120]
[354722513,1740645055772,-7144.45,0.00047671,120]
[354722514,1740645055782,-7144.45,0.00047945,120]
[354722515,1740645055793,-7144.45,0.00048219,120]
[354722516,1740645055805,-1232.62,0.00048493,120]
[354722517,1740645055815,-7144.45,0.00048493,120]
[354722518,1740645055824,-1232.62,0.00048767,120]
[354722519,1740645055836,-7144.45,0.00048767,120]
[354722520,1740645055847,-531.263741,0.00049041,120]
[354722521,1740645055856,-1232.62,0.00049041,120]
[354722522,1740645055866,-7144.45,0.00049041,120]
[354722523,1740645055875,-531.263741,0.00049315,120]
[354722524,1740645055885,-1232.62,0.00049315,120]
[354722525,1740645055895,-7144.45,0.00049315,120]
[354722526,1740645055904,-531.263739,0.00049589,120]
[354722527,1740645055913,-1232.62,0.00049589,120]
[354722528,1740645055923,-7144.45,0.00049589,120]
[354722529,1740645055932,-1232.62,0.00049863,120]
[354722530,1740645055941,-7144.45,0.00049863,120]
[354722531,1740645055950,-976692.89728603,0.0005,2]
[354722532,1740645055960,-1002.52826584,0.0005,2]
[354722533,1740645055971,-218.029709,0.0005,120]
[354722534,1740645055980,-218.029716,0.0005,120]
[354722535,1740645055990,-500.0,0.00050093,2]
[354722536,1740645056000,-2155.89,0.000501,30]
[354722537,1740645056009,-500.0,0.00050136,3]
[354722538,1740645056019,-511.37,0.00050136,120]
[354722539,1740645056028,-500.0,0.00050136,120]
[354722540,1740645056037,-500.0,0.00050136,120]
[354722541,1740645056047,-750.83,0.00050136,120]
[354722542,1740645056056,-537.68,0.00050136,120]
[354722543,1740645056065,-639.17,0.00050136,120]
[354722544,1740645056074,-500.0,0.00050136,120]
[354722545,1740645056085,-500.0,0.00050136,120]
[354722546,1740645056095,-681.92,0.00050136,120]
[354722547,1740645056104,-500.0,0.00050136,120]
[354722548,1740645056113,-663.83,0.00050136,120]
[354722549,1740645056123,-500.0,0.00050136,120]
[354722550,1740645056133,-500.0,0.00050136,120]
[354722551,1740645056143,-556.53,0.00050136,120]
[354722552,1740645056153,-663.48,0.00050136,120]
[354722553,1740645056162,-569.72,0.00050136,120]
[354722554,1740645056172,-1031.79,0.00050136,120]
[354722555,1740645056181,-484.11414679,0.00050136,120]
[354722556,1740645056190,-549.69,0.00050136,120]
[354722557,1740645056200,-540.2,0.00050136,120]
[354722558,1740645056210,-500.0,0.00050136,120]
[354722559,1740645056219,-500.0,0.00050136,120]
[354722560,1740645056228,-1080.0,0.00050136,120]
[354722561,1740645056238,-500.0,0.00050136,120]
[354722562,1740645056247,-701.25,0.00050136,120]
[354722563,1740645056257,-500.0,0.00050136,120]
[354722564,1740645056266,-706.92,0.00050136,120]
[354722565,1740645056276,-500.0,0.00050136,120]
[354722566,1740645056286,-500.0,0.00050136,120]
[354722567,1740645056295,-500.0,0.00050136,120]
[354722568,1740645056305,-1475.23,0.00050136,120]
[354722569,1740645056315,-500.0,0.00050136,120]
[354722570,1740645056325,-3605.51,0.00050136,120]
[354722571,1740645056336,-706.59,0.00050136,120]
[354722572,1740645056346,-5880.65,0.00050136,120]
[354722573,1740645056356,-687.22,0.00050136,120]
[354722574,1740645056371,-829.07,0.00050136,120]
[354722575,1740645056380,-2715.66,0.00050136,120]
[354722576,1740645056390,-1233.62,0.00050136,120]
[354722577,1740645056401,-890.87,0.00050136,120]
[354722578,1740645056411,-44425.16,0.00050136,7]
[354722579,1740645056421,-525.49,0.00050136,120]
[354722580,1740645056430,-1160.72,0.00050136,120]
[354722581,1740645056441,-1542.34,0.00050136,120]
[354722582,1740645056450,-10995.86,0.00050136,120]
[354722583,1740645056460,-948.49,0.00050136,120]
[354722584,1740645056470,-3757.81,0.00050136,120]
[354722585,1740645056480,-917.96,0.00050136,120]
[354722586,1740645056489,-500.0,0.00050136,120]
[354722587,1740645056498,-564.18,0.00050136,120]
[354722588,1740645056508,-501.08,0.00050136,120]
[354722589,1740645056517,-1429.82,0.00050136,120]
[354722590,1740645056526,-500.0,0.00050136,120]
[354722591,1740645056536,-621.86,0.00050136,120]
[354722592,1740645056546,-978.18,0.00050136,120]
[354722593,1740645056557,-500.0,0.00050136,120]
[354722594,1740645056567,-2204.67,0.00050136,120]
[354722595,1740645056577,-1661.65,0.00050136,120]
[354722596,1740645056588,-500.0,0.00050136,120]
[354722597,1740645056597,-1062.09,0.00050136,120]
[354722598,1740645056608,-2457.94,0.00050136,120]
[354722599,1740645056618,-668.19,0.00050136,120]
[354722600,1740645056627,-1292.87,0.00050136,120]
[354722601,1740645056636,-778.13,0.00050136,120]
[354722602,1740645056646,-1176.62,0.00050136,120]
[354722603,1740645056655,-965.62,0.00050136,120]
[354722604,1740645056667,-1216.86,0.00050136,120]
[354722605,1740645056677,-536.82,0.00050136,120]
[354722606,1740645056688,-350.21887159,0.00050136,120]
[354722607,1740645056699,-613.31,0.00050136,120]
[354722608,1740645056709,-1414.02,0.00050136,120]
[354722609,1740645056720,-799.1,0.00050136,120]
[354722610,1740645056731,-10598.07,0.00050136,6]
[354722611,1740645056743,-821.64,0.00050136,120]
[354722612,1740645056755,-3104.1,0.00050136,120]
[354722613,1740645056766,-1640.98,0.00050136,120]
[354722614,1740645056775,-500.0,0.00050136,120]
[354722615,1740645056786,-1310.59,0.00050136,120]
[354722616,1740645056797,-641.14,0.00050136,120]
[354722617,1740645056808,-17858.17,0.00050136,120]
[354722618,1740645056819,-708.95,0.00050136,120]
[354722619,1740645056828,-823.99,0.00050136,120]
[354722620,1740645056839,-2086.09,0.00050136,120]
[354722621,1740645056848,-655.68,0.00050136,120]
[354722622,1740645056859,-1565.67,0.00050136,120]
[354722623,1740645056868,-1232.62,0.00050136,120]
[354722624,1740645056877,-7144.45,0.00050136,120]
[354722625,1740645056886,-1631.0,0.00050137,30]
[354722626,1740645056897,-876.79097142,0.00050137,30]
[354722627,1740645056907,-500.0,0.00050137,30]
[354722628,1740645056917,-500.0,0.00050137,30]
[354722629,1740645056926,-500.0,0.00050193,2]
[354722630,1740645056935,-89119.82,0.000502,30]
[354722631,1740645056943,-437.53,0.000502,30]
[354722632,1740645056952,-5274.61,0.000502,30]
[354722633,1740645056961,-500.0,0.00050293,2]
[354722634,1740645056969,-204.43518837,0.00050344,11]
[354722635,1740645056978,-500.0,0.00050393,2]
[354722636,1740645056987,-500.0,0.0005041,3]
[354722637,1740645056996,-511.37,0.0005041,120]
[354722638,1740645057005,-500.0,0.0005041,120]
[354722639,1740645057016,-500.0,0.0005041,120]
[354722640,1740645057026,-750.83,0.0005041,120]
[354722641,1740645057037,-537.68,0.0005041,120]
[354722642,1740645057047,-639.17,0.0005041,120]
[354722643,1740645057057,-435.01801497,0.0005041,120]
[354722644,1740645057067,-327.85597773,0.0005041,120]
[354722645,1740645057077,-681.92,0.0005041,120]
[354722646,1740645057089,-500.0,0.0005041,120]
[354722647,1740645057099,-663.83,0.0005041,120]
[354722648,1740645057108,-500.0,0.0005041,120]
[354722649,1740645057117,-500.0,0.0005041,120]
[354722650,1740645057128,-556.53,0.0005041,120]
[354722651,1740645057139,-663.48,0.0005041,120]
[354722652,1740645057150,-569.72,0.0005041,120]
[354722653,1740645057159,-1031.79,0.0005041,120]
[354722654,1740645057168,-549.69,0.0005041,120]
[354722655,1740645057177,-540.2,0.0005041,120]
[354722656,1740645057186,-271.06738115,0.0005041,120]
[354722657,1740645057195,-500.0,0.0005041,120]
[354722658,1740645057204,-1080.0,0.0005041,120]
[354722659,1740645057214,-500.0,0.0005041,120]
[354722660,1740645057223,-701.25,0.0005041,120]
[354722661,1740645057233,-500.0,0.0005041,120]
[354722662,1740645057243,-706.92,0.0005041,120]
[354722663,1740645057252,-500.0,0.0005041,120]
[354722664,1740645057262,-500.0,0.0005041,120]
[354722665,1740645057271,-500.0,0.0005041,120]
[354722666,1740645057281,-1475.23,0.0005041,120]
[354722667,1740645057290,-500.0,0.0005041,120]
[354722668,1740645057301,-3605.51,0.0005041,120]
[354722669,1740645057311,-706.59,0.0005041,120]
[354722670,1740645057322,-5880.65,0.0005041,120]
[354722671,1740645057335,-687.22,0.0005041,120]
[354722672,1740645057345,-829.07,0.0005041,120]
[354722673,1740645057355,-2715.66,0.0005041,120]
[354722674,1740645057368,-1233.62,0.0005041,120]
[354722675,1740645057379,-890.87,0.0005041,120]
[354722676,1740645057389,-44425.16,0.0005041,7]
[354722677,1740645057398,-525.49,0.0005041,120]
[354722678,1740645057409,-1160.72,0.0005041,120]
[354722679,1740645057419,-1542.34,0.0005041,120]
[354722680,1740645057428,-10995.86,0.0005041,120]
[354722681,1740645057438,-948.49,0.0005041,120]
[354722682,1740645057447,-3757.81,0.0005041,120]
[354722683,1740645057458,-917.96,0.0005041,120]
[354722684,1740645057468,-500.0,0.0005041,120]
[354722685,1740645057477,-564.18,0.0005041,120]
[354722686,1740645057488,-501.08,0.0005041,120]
[354722687,1740645057497,-1429.82,0.0005041,120]
[354722688,1740645057506,-500.0,0.0005041,120]
[354722689,1740645057517,-621.86,0.0005041,120]
[354722690,1740645057526,-978.18,0.0005041,120]
[354722691,1740645057536,-500.0,0.0005041,120]
[354722692,1740645057545,-2204.67,0.0005041,120]
[354722693,1740645057555,-1661.65,0.0005041,120]
[354722694,1740645057565,-500.0,0.0005041,120]
[354722695,1740645057575,-1062.09,0.0005041,120]
[354722696,1740645057587,-2457.94,0.0005041,120]
[354722697,1740645057597,-668.19,0.0005041,120]
[354722698,1740645057606,-1292.87,0.0005041,120]
[354722699,1740645057616,-778.13,0.0005041,120]
[354722700,1740645057625,-1176.62,0.0005041,120]
[354722701,1740645057635,-965.62,0.0005041,120]
[354722702,1740645057644,-1216.86,0.0005041,120]
[354722703,1740645057653,-536.82,0.0005041,120]
[354722704,1740645057664,-613.31,0.0005041,120]
[354722705,1740645057673,-1414.02,0.0005041,120]
[354722706,1740645057683,-799.1,0.0005041,120]
[354722707,1740645057692,-10598.07,0.0005041,6]
[354722708,1740645057702,-821.64,0.0005041,120]
[354722709,1740645057711,-3104.1,0.0005041,120]
[354722710,1740645057721,-1640.98,0.0005041,120]
[354722711,1740645057731,-500.0,0.0005041,120]
[354722712,1740645057740,-1310.59,0.0005041,120]
[354722713,1740645057750,-641.14,0.0005041,120]
[354722714,1740645057759,-17858.17,0.0005041,120]
[354722715,1740645057769,-708.95,0.0005041,120]
[354722716,1740645057779,-823.99,0.0005041,120]
[354722717,1740645057788,-2086.09,0.0005041,120]
[354722718,1740645057797,-655.68,0.0005041,120]
[354722719,1740645057806,-1565.67,0.0005041,120]
[354722720,1740645057815,-1232.62,0.0005041,120]
[354722721,1740645057824,-7144.45,0.0005041,120]
[354722722,1740645057837,-1631.0,0.00050411,30]
[354722723,1740645057846,-500.0,0.00050411,30]
[354722724,1740645057855,-500.0,0.00050411,30]
[354722725,1740645057864,-500.0,0.00050493,2]
[354722726,1740645057873,-150.0,0.000505,120]
[354722727,1740645057882,-500.0,0.00050593,2]
[354722728,1740645057891,-4044.52,0.000506,30]
[354722729,1740645057901,-453.620153,0.00050684,3]
[354722730,1740645057910,-511.37,0.00050684,120]
[354722731,1740645057919,-500.0,0.00050684,120]
[354722732,1740645057929,-500.0,0.00050684,120]
[354722733,1740645057938,-750.83,0.00050684,120]
[354722734,1740645057947,-537.68,0.00050684,120]
[354722735,1740645057956,-639.17,0.00050684,120]
[354722736,1740645057965,-681.92,0.00050684,120]
[354722737,1740645057973,-568.07810074,0.00050684,120]
[354722738,1740645057982,-663.83,0.00050684,120]
[354722739,1740645057991,-500.0,0.00050684,120]
[354722740,1740645058000,-500.0,0.00050684,120]
[354722741,1740645058009,-556.53,0.00050684,120]
[354722742,1740645058020,-663.48,0.00050684,120]
[354722743,1740645058029,-569.72,0.00050684,120]
[354722744,1740645058038,-1031.79,0.00050684,120]
[354722745,1740645058047,-549.69,0.00050684,120]
[354722746,1740645058056,-540.2,0.00050684,120]
[354722747,1740645058065,-500.0,0.00050684,120]
[354722748,1740645058074,-1080.0,0.00050684,120]
[354722749,1740645058087,-500.0,0.00050684,120]
[354722750,1740645058105,-701.25,0.00050684,120]
[354722751,1740645058118,-500.0,0.00050684,120]
[354722752,1740645058129,-706.92,0.00050684,120]
[354722753,1740645058138,-500.0,0.00050684,120]
[354722754,1740645058148,-500.0,0.00050684,120]
[354722755,1740645058158,-500.0,0.00050684,120]
[354722756,1740645058167,-1475.23,0.00050684,120]
[354722757,1740645058177,-500.0,0.00050684,120]
[354722758,1740645058187,-3605.51,0.00050684,120]
[354722759,1740645058198,-706.59,0.00050684,120]
[354722760,1740645058210,-5880.65,0.00050684,120]
[354722761,1740645058220,-687.22,0.00050684,120]
[354722762,1740645058230,-829.07,0.00050684,120]
[354722763,1740645058239,-2715.66,0.00050684,120]
[354722764,1740645058249,-1233.62,0.00050684,120]
[354722765,1740645058259,-890.87,0.00050684,120]
[354722766,1740645058269,-44425.16,0.00050684,7]
[354722767,1740645058278,-525.49,0.00050684,120]
[354722768,1740645058288,-1160.72,0.00050684,120]
[354722769,1740645058299,-10995.86,0.00050684,120]
[354722770,1740645058310,-1542.34,0.00050684,120]
[354722771,1740645058320,-948.49,0.00050684,120]
[354722772,1740645058333,-3757.81,0.00050684,120]
[354722773,1740645058343,-917.96,0.00050684,120]
[354722774,1740645058352,-500.0,0.00050684,120]
[354722775,1740645058364,-564.18,0.00050684,120]
[354722776,1740645058373,-501.08,0.00050684,120]
[354722777,1740645058383,-1429.82,0.00050684,120]
[354722778,1740645058392,-239.1996077,0.00050684,120]
[354722779,1740645058402,-621.86,0.00050684,120]
[354722780,1740645058414,-978.18,0.00050684,120]
[354722781,1740645058423,-500.0,0.00050684,120]
[354722782,1740645058433,-2204.67,0.00050684,120]
[354722783,1740645058443,-1661.65,0.00050684,120]
[354722784,1740645058453,-500.0,0.00050684,120]
[354722785,1740645058463,-1062.09,0.00050684,120]
[354722786,1740645058472,-2457.94,0.00050684,120]
[354722787,1740645058482,-668.19,0.00050684,120]
[354722788,1740645058491,-1292.87,0.00050684,120]
[354722789,1740645058501,-778.13,0.00050684,120]
[354722790,1740645058663,-1176.62,0.00050684,120]
[354722791,1740645058687,-965.62,0.00050684,120]
[354722792,1740645058697,-1216.86,0.00050684,120]
[354722793,1740645058706,-536.82,0.00050684,120]
[354722794,1740645058716,-613.31,0.00050684,120]
[354722795,1740645058725,-1414.02,0.00050684,120]
[354722796,1740645058734,-799.1,0.00050684,120]
[354722797,1740645058743,-10598.07,0.00050684,6]
[354722798,1740645058753,-821.64,0.00050684,120]
[354722799,1740645058762,-3104.1,0.00050684,120]
[354722800,1740645058772,-1640.98,0.00050684,120]
[354722801,1740645058781,-500.0,0.00050684,120]
[354722802,1740645058791,-1310.59,0.00050684,120]
[354722803,1740645058800,-641.14,0.00050684,120]
[354722804,1740645058810,-17858.17,0.00050684,120]
[354722805,1740645058819,-708.95,0.00050684,120]
[354722806,1740645058828,-823.99,0.00050684,120]
[354722807,1740645058841,-2086.09,0.00050684,120]
[354722808,1740645058850,-655.68,0.00050684,120]
[354722809,1740645058859,-1565.67,0.00050684,120]
[354722810,1740645058868,-1232.62,0.00050684,120]
[354722811,1740645058877,-7144.45,0.00050684,120]
[354722812,1740645058887,-1631.0,0.00050685,30]
[354722813,1740645058896,-500.0,0.00050685,30]
[354722814,1740645058906,-500.0,0.00050685,30]
[354722815,1740645058915,-500.0,0.00050693,2]
[354722816,1740645058924,-500.0,0.00050793,2]
[354722817,1740645058933,-500.0,0.00050893,2]
[354722818,1740645058942,-160.0,0.0005092,3]
[354722819,1740645058951,-298.29538208,0.0005092,5]
[354722820,1740645058960,-511.37,0.00050958,120]
[354722821,1740645058969,-500.0,0.00050958,120]
[354722822,1740645058978,-500.0,0.00050958,120]
[354722823,1740645058987,-750.83,0.00050958,120]
[354722824,1740645058997,-537.68,0.00050958,120]
[354722825,1740645059006,-639.17,0.00050958,120]
[354722826,1740645059015,-681.92,0.00050958,120]
[354722827,1740645059024,-663.83,0.00050958,120]
[354722828,1740645059033,-500.0,0.00050958,120]
[354722829,1740645059042,-500.0,0.00050958,120]
[354722830,1740645059051,-556.53,0.00050958,120]
[354722831,1740645059060,-663.48,0.00050958,120]
[354722832,1740645059069,-569.72,0.00050958,120]
[354722833,1740645059078,-1031.79,0.00050958,120]
[354722834,1740645059089,-549.69,0.00050958,120]
[354722835,1740645059098,-540.2,0.00050958,120]
[354722836,1740645059107,-500.0,0.00050958,120]
[354722837,1740645059116,-1080.0,0.00050958,120]
[354722838,1740645059125,-500.0,0.00050958,120]
[354722839,1740645059134,-701.25,0.00050958,120]
[354722840,1740645059147,-500.0,0.00050958,120]
[354722841,1740645059156,-706.92,0.00050958,120]
[354722842,1740645059165,-500.0,0.00050958,120]
[354722843,1740645059175,-500.0,0.00050958,120]
[354722844,1740645059184,-500.0,0.00050958,120]
[354722845,1740645059193,-1475.23,0.00050958,120]
[354722846,1740645059203,-500.0,0.00050958,120]
[354722847,1740645059212,-3605.51,0.00050958,120]
[354722848,1740645059222,-706.59,0.00050958,120]
[354722849,1740645059231,-5880.65,0.00050958,120]
[354722850,1740645059241,-687.22,0.00050958,120]
[354722851,1740645059250,-829.07,0.00050958,120]
[354722852,1740645059260,-2715.66,0.00050958,120]
[354722853,1740645059270,-1233.62,0.00050958,120]
[354722854,1740645059279,-890.87,0.00050958,120]
[354722855,1740645059288,-44425.16,0.00050958,7]
[354722856,1740645059298,-525.49,0.00050958,120]
[354722857,1740645059307,-1160.72,0.00050958,120]
[354722858,1740645059316,-1542.34,0.00050958,120]
[354722859,1740645059326,-10995.86,0.00050958,120]
[354722860,1740645059336,-948.49,0.00050958,120]
[354722861,1740645059346,-3757.81,0.00050958,120]
[354722862,1740645059354,-917.96,0.00050958,120]
[354722863,1740645059365,-496.43277667,0.00050958,120]
[354722864,1740645059374,-564.18,0.00050958,120]
[354722865,1740645059384,-501.08,0.00050958,120]
[354722866,1740645059393,-1429.82,0.00050958,120]
[354722867,1740645059403,-621.86,0.00050958,120]
[354722868,1740645059414,-978.18,0.00050958,120]
[354722869,1740645059423,-500.0,0.00050958,120]
[354722870,1740645059432,-2204.67,0.00050958,120]
[354722871,1740645059443,-1661.65,0.00050958,120]
[354722872,1740645059453,-500.0,0.00050958,120]
[354722873,1740645059462,-1062.09,0.00050958,120]
[354722874,1740645059471,-2457.94,0.00050958,120]
[354722875,1740645059480,-668.19,0.00050958,120]
[354722876,1740645059489,-1292.87,0.00050958,120]
[354722877,1740645059498,-778.13,0.00050958,120]
[354722878,1740645059508,-1176.62,0.00050958,120]
[354722879,1740645059517,-965.62,0.00050958,120]
[354722880,1740645059527,-1216.86,0.00050958,120]
[354722881,1740645059537,-536.82,0.00050958,120]
[354722882,1740645059546,-613.31,0.00050958,120]
[354722883,1740645059556,-1414.02,0.00050958,120]
[354722884,1740645059565,-799.1,0.00050958,120]
[354722885,1740645059575,-10598.07,0.00050958,6]
[354722886,1740645059585,-821.64,0.00050958,120]
[354722887,1740645059595,-3104.1,0.00050958,120]
[354722888,1740645059604,-1640.98,0.00050958,120]
[354722889,1740645059613,-500.0,0.00050958,120]
[354722890,1740645059623,-1310.59,0.00050958,120]
[354722891,1740645059632,-641.14,0.00050958,120]
[354722892,1740645059641,-17858.17,0.00050958,120]
[354722893,1740645059650,-708.95,0.00050958,120]
[354722894,1740645059659,-823.99,0.00050958,120]
[354722895,1740645059669,-2086.09,0.00050958,120]
[354722896,1740645059678,-655.68,0.00050958,120]
[354722897,1740645059688,-1565.67,0.00050958,120]
[354722898,1740645059698,-1232.62,0.00050958,120]
[354722899,1740645059707,-7144.45,0.00050958,120]
[354722900,1740645059716,-1631.0,0.00050959,30]
[354722901,1740645059726,-500.0,0.00050959,30]
[354722902,1740645059736,-500.0,0.00050959,30]
[354722903,1740645059746,-500.0,0.00050993,2]
[354722904,1740645059755,-2012.0,0.00051,120]
[354722905,1740645059764,-24943.0,0.00051,120]
[354722906,1740645059773,-500.0,0.00051093,2]
[354722907,1740645059783,-500.0,0.00051193,2]